[Event "Titled Tuesday Blitz March 08 Early 2022"]
[White "Vogel, Roven"]
[Black "Pinheiro, Iung Alicio de O."]
[WhiteFideId "12908088"]
[BlackFideId "2104350"]
[WhiteElo "2516"]
[BlackElo "2564"]
[Result "1-0"]
[Round "06"]
[TimeControl "180+1"]
[Date "2022.03.09"]
[WhiteClock "0:00:36"]
[BlackClock "0:00:03"]

1. e4 {[%clk 0:02:58]}  c5 {[%clk 0:02:58]} 2. Nf3 {[%clk 0:02:58]}  Nc6 {[%clk 0:02:49]} 3. Bb5 {[%clk 0:02:55]}  e6 {[%clk 0:02:49]} 4. O-O {[%clk 0:02:54]}  Nge7 {[%clk 0:02:49]} 5. Re1 {[%clk 0:02:52]}  Nd4 {[%clk 0:02:48]} 6. Nxd4 {[%clk 0:02:49]}  cxd4 {[%clk 0:02:48]} 7. c3 {[%clk 0:02:48]}  a6 {[%clk 0:02:47]} 8. Bf1 {[%clk 0:02:41]}  Nc6 {[%clk 0:02:47]} 9. d3 {[%clk 0:02:33]}  Bc5 {[%clk 0:02:46]} 10. Nd2 {[%clk 0:02:31]}  O-O {[%clk 0:02:42]} 11. Nf3 {[%clk 0:02:31]}  d6 {[%clk 0:02:22]} 12. a3 {[%clk 0:02:26]}  e5 {[%clk 0:02:15]} 13. b4 {[%clk 0:02:19]}  Bb6 {[%clk 0:02:13]} 14. c4 {[%clk 0:02:20]}  Bg4 {[%clk 0:02:09]} 15. h3 {[%clk 0:02:19]}  Bh5 {[%clk 0:02:06]} 16. Be2 {[%clk 0:02:17]}  Bg6 {[%clk 0:02:02]} 17. Bg5 {[%clk 0:02:14]}  f6 {[%clk 0:02:02]} 18. Bd2 {[%clk 0:02:13]}  Qd7 {[%clk 0:01:40]} 19. Nh4 {[%clk 0:02:13]}  Bf7 {[%clk 0:01:41]} 20. Bg4 {[%clk 0:02:11]}  Be6 {[%clk 0:01:39]} 21. Bxe6+ {[%clk 0:02:08]}  Qxe6 {[%clk 0:01:40]} 22. Qg4 {[%clk 0:02:08]}  Rae8 {[%clk 0:01:32]} 23. g3 {[%clk 0:02:04]}  Nd8 {[%clk 0:01:27]} 24. f4 {[%clk 0:02:00]}  Nf7 {[%clk 0:01:21]} 25. Qxe6 {[%clk 0:01:56]}  Rxe6 {[%clk 0:01:22]} 26. f5 {[%clk 0:01:56]}  Ree8 {[%clk 0:01:21]} 27. Nf3 {[%clk 0:01:57]}  Ra8 {[%clk 0:01:17]} 28. Reb1 {[%clk 0:01:54]}  Rfc8 {[%clk 0:01:15]} 29. g4 {[%clk 0:01:43]}  Bd8 {[%clk 0:01:14]} 30. a4 {[%clk 0:01:40]}  b6 {[%clk 0:01:04]} 31. b5 {[%clk 0:01:35]}  a5 {[%clk 0:01:03]} 32. Kf2 {[%clk 0:01:32]}  Kf8 {[%clk 0:01:03]} 33. h4 {[%clk 0:01:31]}  h6 {[%clk 0:00:56]} 34. Rh1 {[%clk 0:01:29]}  Ke8 {[%clk 0:00:53]} 35. Rag1 {[%clk 0:01:28]}  Kd7 {[%clk 0:00:52]} 36. g5 {[%clk 0:01:27]}  hxg5 {[%clk 0:00:33]} 37. hxg5 {[%clk 0:01:28]}  Be7 {[%clk 0:00:32]} 38. g6 {[%clk 0:01:18]}  Nd8 {[%clk 0:00:31]} 39. Rh7 {[%clk 0:01:15]}  Bf8 {[%clk 0:00:31]} 40. Bh6 {[%clk 0:01:14]}  Ke8 {[%clk 0:00:12]} 41. Bxg7 {[%clk 0:01:14]}  Be7 {[%clk 0:00:06]} 42. Bh8 {[%clk 0:01:07]}  Nb7 {[%clk 0:00:04]} 43. Rgh1 {[%clk 0:00:52]}  Nc5 {[%clk 0:00:04]} 44. Rxe7+ {[%clk 0:00:52]}  Kxe7 {[%clk 0:00:03]} 45. Rh7+ {[%clk 0:00:52]}  Ke8 {[%clk 0:00:02]} 46. Bxf6 {[%clk 0:00:53]}  Nxd3+ {[%clk 0:00:01]} 47. Kf1 {[%clk 0:00:49]}  Nf4 {[%clk 0:00:02]} 48. Re7+ {[%clk 0:00:42]}  Kf8 {[%clk 0:00:02]} 49. Rf7+ {[%clk 0:00:42]}  Ke8 {[%clk 0:00:03]} 50. Ng5 {[%clk 0:00:38]}  d3 {[%clk 0:00:03]} 51. g7 {[%clk 0:00:36]} 1-0


[Site "https://www.chess.com"]

[Event "Titled Tuesday Blitz March 08 Early 2022"]
[White "Vusatiuk, Vladimir"]
[Black "Sonis, Francesco"]
[WhiteFideId "14118610"]
[BlackFideId "895733"]
[WhiteElo "2157"]
[BlackElo "2373"]
[Result "0-1"]
[Round "06"]
[TimeControl "180+1"]
[Date "2022.03.08"]
[WhiteClock "0:00:07"]
[BlackClock "0:00:32"]

1. d4 {[%clk 0:03:00]}  Nf6 {[%clk 0:02:58]} 2. c4 {[%clk 0:03:00]}  c5 {[%clk 0:02:57]} 3. d5 {[%clk 0:03:00]}  b5 {[%clk 0:02:57]} 4. cxb5 {[%clk 0:03:01]}  a6 {[%clk 0:02:56]} 5. e3 {[%clk 0:03:02]}  g6 {[%clk 0:02:56]} 6. Nc3 {[%clk 0:03:00]}  Bg7 {[%clk 0:02:56]} 7. e4 {[%clk 0:03:00]}  O-O {[%clk 0:02:55]} 8. a4 {[%clk 0:02:43]}  d6 {[%clk 0:02:53]} 9. Ra3 {[%clk 0:02:17]}  axb5 {[%clk 0:02:50]} 10. Bxb5 {[%clk 0:02:17]}  Na6 {[%clk 0:02:48]} 11. Nge2 {[%clk 0:02:11]}  Nc7 {[%clk 0:02:41]} 12. Bc4 {[%clk 0:02:04]}  Nd7 {[%clk 0:02:41]} 13. O-O {[%clk 0:01:53]}  Ne5 {[%clk 0:02:36]} 14. b3 {[%clk 0:01:53]}  Ba6 {[%clk 0:02:31]} 15. Bxa6 {[%clk 0:01:39]}  Rxa6 {[%clk 0:02:31]} 16. f4 {[%clk 0:01:26]}  Nd7 {[%clk 0:02:27]} 17. Qd3 {[%clk 0:01:25]}  Qa8 {[%clk 0:02:27]} 18. Be3 {[%clk 0:01:20]}  Rb8 {[%clk 0:02:26]} 19. Rb1 {[%clk 0:01:14]}  Rb4 {[%clk 0:02:24]} 20. Na2 {[%clk 0:01:06]}  Rb7 {[%clk 0:02:17]} 21. Nec3 {[%clk 0:01:02]}  Rab6 {[%clk 0:02:00]} 22. a5 {[%clk 0:00:50]}  Ra6 {[%clk 0:01:55]} 23. b4 {[%clk 0:00:37]}  cxb4 {[%clk 0:01:54]} 24. Rxb4 {[%clk 0:00:29]}  Rxb4 {[%clk 0:01:50]} 25. Nxb4 {[%clk 0:00:30]}  Rxa5 {[%clk 0:01:51]} 26. Rb3 {[%clk 0:00:24]}  Nb8 {[%clk 0:01:35]} 27. h3 {[%clk 0:00:20]}  Nca6 {[%clk 0:01:34]} 28. Nxa6 {[%clk 0:00:18]}  Nxa6 {[%clk 0:01:35]} 29. Bd4 {[%clk 0:00:16]}  Nc5 {[%clk 0:01:29]} 30. Bxc5 {[%clk 0:00:15]}  Rxc5 {[%clk 0:01:30]} 31. Ne2 {[%clk 0:00:11]}  Qa2 {[%clk 0:01:26]} 32. Rb8+ {[%clk 0:00:09]}  Bf8 {[%clk 0:01:26]} 33. Kh2 {[%clk 0:00:08]}  Rc2 {[%clk 0:01:25]} 34. Ra8 {[%clk 0:00:05]}  Qb2 {[%clk 0:01:18]} 35. Rb8 {[%clk 0:00:05]}  Qa2 {[%clk 0:01:18]} 36. Ra8 {[%clk 0:00:05]}  Qc4 {[%clk 0:01:18]} 37. Qxc4 {[%clk 0:00:05]}  Rxc4 {[%clk 0:01:19]} 38. Ng3 {[%clk 0:00:05]}  h5 {[%clk 0:01:19]} 39. h4 {[%clk 0:00:06]}  Kg7 {[%clk 0:01:19]} 40. Kh3 {[%clk 0:00:06]}  f6 {[%clk 0:01:19]} 41. Ra3 {[%clk 0:00:07]}  Kf7 {[%clk 0:01:19]} 42. Re3 {[%clk 0:00:07]}  Bh6 {[%clk 0:01:19]} 43. Rf3 {[%clk 0:00:07]}  Rd4 {[%clk 0:01:19]} 44. Rf2 {[%clk 0:00:07]}  Rd3 {[%clk 0:01:17]} 45. f5 {[%clk 0:00:06]}  g5 {[%clk 0:01:16]} 46. Kh2 {[%clk 0:00:05]}  gxh4 {[%clk 0:01:09]} 47. Nxh5 {[%clk 0:00:05]}  Re3 {[%clk 0:01:05]} 48. Nf4 {[%clk 0:00:05]}  Rxe4 {[%clk 0:01:04]} 49. Ng6 {[%clk 0:00:06]}  Bg5 {[%clk 0:00:58]} 50. Kh3 {[%clk 0:00:06]}  Re3+ {[%clk 0:00:58]} 51. Kg4 {[%clk 0:00:07]}  Re4+ {[%clk 0:00:53]} 52. Kh5 {[%clk 0:00:08]}  Ke8 {[%clk 0:00:41]} 53. Ra2 {[%clk 0:00:08]}  Kd7 {[%clk 0:00:41]} 54. Ra7+ {[%clk 0:00:08]}  Kd8 {[%clk 0:00:41]} 55. Ra8+ {[%clk 0:00:09]}  Kc7 {[%clk 0:00:42]} 56. Ra7+ {[%clk 0:00:09]}  Kb6 {[%clk 0:00:39]} 57. Rxe7 {[%clk 0:00:09]}  Rd4 {[%clk 0:00:39]} 58. Re6 {[%clk 0:00:06]}  Rxd5 {[%clk 0:00:39]} 59. Nxh4 {[%clk 0:00:06]}  Kc5 {[%clk 0:00:37]} 60. g4 {[%clk 0:00:05]}  Rd3 {[%clk 0:00:34]} 61. Ng2 {[%clk 0:00:01]}  Rh3+ {[%clk 0:00:31]} 62. Kg6 {[%clk 0:00:01]}  Rg3 {[%clk 0:00:31]} 63. Ne1 {[%clk 0:00:02]}  d5 {[%clk 0:00:30]} 64. Nd3+ {[%clk 0:00:02]}  Rxd3 {[%clk 0:00:30]} 65. Rxf6 {[%clk 0:00:02]}  Bxf6 {[%clk 0:00:30]} 66. Kxf6 {[%clk 0:00:03]}  Rg3 {[%clk 0:00:30]} 67. g5 {[%clk 0:00:04]}  d4 {[%clk 0:00:31]} 68. g6 {[%clk 0:00:05]}  d3 {[%clk 0:00:32]} 69. g7 {[%clk 0:00:05]}  d2 {[%clk 0:00:31]} 70. Kf7 {[%clk 0:00:06]}  d1=Q {[%clk 0:00:32]} 71. g8=Q {[%clk 0:00:07]}  Qd5+ {[%clk 0:00:32]} 0-1


[Site "https://www.chess.com"]

[Event "Titled Tuesday Blitz March 08 Early 2022"]
[White "Weetik, Vjacheslav"]
[Black "Jacobson, Aaron"]
[WhiteFideId "4153472"]
[BlackFideId "2089912"]
[WhiteElo "2469"]
[BlackElo "2265"]
[Result "1-0"]
[Round "06"]
[TimeControl "180+1"]
[Date "2022.03.09"]
[WhiteClock "0:02:07"]
[BlackClock "0:02:12"]

1. d4 {[%clk 0:02:56]}  e5 {[%clk 0:02:58]} 2. dxe5 {[%clk 0:02:56]}  Nc6 {[%clk 0:02:59]} 3. Nf3 {[%clk 0:02:56]}  Qe7 {[%clk 0:03:00]} 4. Nc3 {[%clk 0:02:56]}  Nxe5 {[%clk 0:03:00]} 5. Nd5 {[%clk 0:02:56]}  Nxf3+ {[%clk 0:03:00]} 6. gxf3 {[%clk 0:02:57]}  Qd8 {[%clk 0:03:01]} 7. e4 {[%clk 0:02:57]}  Nf6 {[%clk 0:03:00]} 8. Bc4 {[%clk 0:02:49]}  d6 {[%clk 0:02:46]} 9. Rg1 {[%clk 0:02:22]}  g6 {[%clk 0:02:13]} 10. Bg5 {[%clk 0:02:16]}  Be7 {[%clk 0:02:12]} 11. Qd4 {[%clk 0:02:07]} 1-0


[Site "https://www.chess.com"]

[Event "Titled Tuesday Blitz March 08 Early 2022"]
[White "Alavi, Sayed Javad"]
[Black "Bodnaruk, Anastasia"]
[WhiteFideId "12500607"]
[BlackFideId "4181751"]
[WhiteElo "2475"]
[BlackElo "2393"]
[Result "1/2-1/2"]
[Round "07"]
[TimeControl "180+1"]
[Date "2022.03.09"]
[WhiteClock "0:00:06"]
[BlackClock "0:00:05"]

1. e4 {[%clk 0:03:00]}  c5 {[%clk 0:02:59]} 2. Nf3 {[%clk 0:03:00]}  d6 {[%clk 0:02:59]} 3. d4 {[%clk 0:02:59]}  cxd4 {[%clk 0:02:59]} 4. Qxd4 {[%clk 0:03:00]}  Nc6 {[%clk 0:02:58]} 5. Bb5 {[%clk 0:03:00]}  Bd7 {[%clk 0:02:58]} 6. Bxc6 {[%clk 0:03:01]}  Bxc6 {[%clk 0:02:58]} 7. Nc3 {[%clk 0:03:01]}  Nf6 {[%clk 0:02:58]} 8. Bg5 {[%clk 0:03:02]}  e6 {[%clk 0:02:59]} 9. O-O-O {[%clk 0:03:02]}  Be7 {[%clk 0:02:58]} 10. Rhe1 {[%clk 0:03:01]}  O-O {[%clk 0:02:57]} 11. Qd2 {[%clk 0:03:01]}  h6 {[%clk 0:02:48]} 12. Bxf6 {[%clk 0:02:43]}  Bxf6 {[%clk 0:02:47]} 13. Qxd6 {[%clk 0:02:44]}  Qa5 {[%clk 0:02:44]} 14. e5 {[%clk 0:02:16]}  Rfd8 {[%clk 0:02:24]} 15. Qa3 {[%clk 0:02:13]}  Qxa3 {[%clk 0:02:23]} 16. bxa3 {[%clk 0:02:14]}  Be7 {[%clk 0:02:24]} 17. Kb2 {[%clk 0:02:12]}  Bc5 {[%clk 0:02:13]} 18. Rxd8+ {[%clk 0:01:49]}  Rxd8 {[%clk 0:02:12]} 19. Re2 {[%clk 0:01:50]}  b5 {[%clk 0:01:58]} 20. Nd2 {[%clk 0:01:21]}  Bxg2 {[%clk 0:01:47]} 21. f3 {[%clk 0:01:21]}  Bh3 {[%clk 0:01:45]} 22. Nde4 {[%clk 0:01:19]}  Be7 {[%clk 0:01:38]} 23. Kb3 {[%clk 0:01:05]}  a5 {[%clk 0:01:26]} 24. Ng3 {[%clk 0:00:57]}  b4 {[%clk 0:01:18]} 25. axb4 {[%clk 0:00:55]}  axb4 {[%clk 0:01:18]} 26. Nce4 {[%clk 0:00:55]}  Bf5 {[%clk 0:00:59]} 27. Nxf5 {[%clk 0:00:46]}  exf5 {[%clk 0:01:00]} 28. Nd6 {[%clk 0:00:46]}  Bxd6 {[%clk 0:00:44]} 29. exd6 {[%clk 0:00:47]}  Rxd6 {[%clk 0:00:45]} 30. Kxb4 {[%clk 0:00:48]}  Rb6+ {[%clk 0:00:37]} 31. Kc5 {[%clk 0:00:48]}  Rb2 {[%clk 0:00:33]} 32. a4 {[%clk 0:00:47]}  g5 {[%clk 0:00:31]} 33. a5 {[%clk 0:00:42]}  Ra2 {[%clk 0:00:28]} 34. Kb6 {[%clk 0:00:41]}  Rb2+ {[%clk 0:00:28]} 35. Kc6 {[%clk 0:00:39]}  Ra2 {[%clk 0:00:28]} 36. Kb6 {[%clk 0:00:31]}  Rb2+ {[%clk 0:00:28]} 37. Ka7 {[%clk 0:00:31]}  g4 {[%clk 0:00:18]} 38. a6 {[%clk 0:00:27]}  gxf3 {[%clk 0:00:17]} 39. Rf2 {[%clk 0:00:27]}  Kg7 {[%clk 0:00:16]} 40. Ka8 {[%clk 0:00:22]}  Kg6 {[%clk 0:00:11]} 41. a7 {[%clk 0:00:22]}  Kg5 {[%clk 0:00:11]} 42. Rxf3 {[%clk 0:00:22]}  Rxc2 {[%clk 0:00:09]} 43. Ra3 {[%clk 0:00:22]}  Rb2 {[%clk 0:00:09]} 44. Rc3 {[%clk 0:00:14]}  f4 {[%clk 0:00:08]} 45. Rc7 {[%clk 0:00:14]}  f5 {[%clk 0:00:07]} 46. Rb7 {[%clk 0:00:13]}  Ra2 {[%clk 0:00:07]} 47. Kb8 {[%clk 0:00:13]}  f3 {[%clk 0:00:08]} 48. a8=Q {[%clk 0:00:10]}  Rxa8+ {[%clk 0:00:08]} 49. Kxa8 {[%clk 0:00:11]}  f2 {[%clk 0:00:08]} 50. Rb1 {[%clk 0:00:08]}  Kf4 {[%clk 0:00:08]} 51. Kb7 {[%clk 0:00:08]}  Kf3 {[%clk 0:00:09]} 52. Kc6 {[%clk 0:00:09]}  Kg2 {[%clk 0:00:05]} 53. Kd5 {[%clk 0:00:08]}  Kxh2 {[%clk 0:00:04]} 54. Ke5 {[%clk 0:00:08]}  Kg2 {[%clk 0:00:05]} 55. Kxf5 {[%clk 0:00:08]}  h5 {[%clk 0:00:05]} 56. Kg5 {[%clk 0:00:07]}  f1=Q {[%clk 0:00:05]} 57. Rxf1 {[%clk 0:00:05]}  Kxf1 {[%clk 0:00:05]} 58. Kxh5 {[%clk 0:00:06]} 1/2-1/2


[Site "https://www.chess.com"]

[Event "Titled Tuesday Blitz March 08 Early 2022"]
[White "Arabidze, Meri"]
[Black "Shyaamnikhil P"]
[WhiteFideId "13604040"]
[BlackFideId "5024218"]
[WhiteElo "2335"]
[BlackElo "2329"]
[Result "1/2-1/2"]
[Round "07"]
[TimeControl "180+1"]
[Date "2022.03.09"]
[WhiteClock "0:00:11"]
[BlackClock "0:00:16"]

1. d4 {[%clk 0:02:56]}  Nf6 {[%clk 0:02:24]} 2. Nf3 {[%clk 0:02:56]}  e6 {[%clk 0:02:23]} 3. g3 {[%clk 0:02:56]}  c5 {[%clk 0:02:23]} 4. Bg2 {[%clk 0:02:57]}  cxd4 {[%clk 0:02:23]} 5. Nxd4 {[%clk 0:02:58]}  Nc6 {[%clk 0:02:22]} 6. O-O {[%clk 0:02:58]}  Bc5 {[%clk 0:02:21]} 7. Nb3 {[%clk 0:02:56]}  Be7 {[%clk 0:02:21]} 8. c4 {[%clk 0:02:56]}  b6 {[%clk 0:02:21]} 9. Nc3 {[%clk 0:02:56]}  Bb7 {[%clk 0:02:22]} 10. Nb5 {[%clk 0:02:52]}  O-O {[%clk 0:02:17]} 11. Bf4 {[%clk 0:02:50]}  d5 {[%clk 0:02:15]} 12. cxd5 {[%clk 0:02:29]}  Nxd5 {[%clk 0:02:14]} 13. Bxd5 {[%clk 0:02:29]}  Qxd5 {[%clk 0:02:04]} 14. Qxd5 {[%clk 0:02:28]}  exd5 {[%clk 0:02:05]} 15. Rfd1 {[%clk 0:02:21]}  Bf6 {[%clk 0:02:04]} 16. Nc7 {[%clk 0:02:01]}  Rad8 {[%clk 0:01:55]} 17. Nxd5 {[%clk 0:01:42]}  Bxb2 {[%clk 0:01:53]} 18. Rab1 {[%clk 0:01:43]}  Be5 {[%clk 0:01:47]} 19. e4 {[%clk 0:01:41]}  Bxf4 {[%clk 0:01:43]} 20. gxf4 {[%clk 0:01:42]}  f5 {[%clk 0:01:42]} 21. f3 {[%clk 0:01:41]}  fxe4 {[%clk 0:01:41]} 22. fxe4 {[%clk 0:01:42]}  Rde8 {[%clk 0:01:38]} 23. Re1 {[%clk 0:01:33]}  Ne7 {[%clk 0:01:37]} 24. Nc7 {[%clk 0:01:30]}  Rc8 {[%clk 0:01:29]} 25. Ne6 {[%clk 0:01:30]}  Rf6 {[%clk 0:01:23]} 26. Nbd4 {[%clk 0:01:31]}  Nc6 {[%clk 0:01:08]} 27. f5 {[%clk 0:01:21]}  Nxd4 {[%clk 0:00:54]} 28. Nxd4 {[%clk 0:01:22]}  Rd6 {[%clk 0:00:53]} 29. Nf3 {[%clk 0:01:09]}  Rc2 {[%clk 0:00:50]} 30. e5 {[%clk 0:00:33]}  Rd3 {[%clk 0:00:32]} 31. e6 {[%clk 0:00:24]}  Bxf3 {[%clk 0:00:19]} 32. e7 {[%clk 0:00:24]}  Bc6 {[%clk 0:00:19]} 33. e8=Q+ {[%clk 0:00:21]}  Bxe8 {[%clk 0:00:20]} 34. Rxe8+ {[%clk 0:00:22]}  Kf7 {[%clk 0:00:21]} 35. Rbe1 {[%clk 0:00:23]}  Rdd2 {[%clk 0:00:20]} 36. h4 {[%clk 0:00:15]}  Rg2+ {[%clk 0:00:19]} 37. Kh1 {[%clk 0:00:16]}  Rh2+ {[%clk 0:00:19]} 38. Kg1 {[%clk 0:00:16]}  Rcg2+ {[%clk 0:00:19]} 39. Kf1 {[%clk 0:00:15]}  Rxa2 {[%clk 0:00:18]} 40. Kg1 {[%clk 0:00:12]}  Rhg2+ {[%clk 0:00:17]} 41. Kh1 {[%clk 0:00:12]}  Rh2+ {[%clk 0:00:18]} 42. Kg1 {[%clk 0:00:12]}  Rxh4 {[%clk 0:00:18]} 43. R1e6 {[%clk 0:00:10]}  Rg4+ {[%clk 0:00:17]} 44. Kh1 {[%clk 0:00:11]}  Rh4+ {[%clk 0:00:17]} 45. Kg1 {[%clk 0:00:10]}  Rg4+ {[%clk 0:00:16]} 46. Kh1 {[%clk 0:00:10]}  Rh4+ {[%clk 0:00:16]} 47. Kg1 {[%clk 0:00:11]} 1/2-1/2


[Site "https://www.chess.com"]

[Event "Titled Tuesday Blitz March 08 Early 2022"]
[White "Aradhya, Garg"]
[Black "Kollars, Dmitrij"]
[WhiteFideId "25006746"]
[BlackFideId "12909572"]
[WhiteElo "2169"]
[BlackElo "2584"]
[Result "0-1"]
[Round "07"]
[TimeControl "180+1"]
[Date "2022.03.08"]
[WhiteClock "0:01:20"]
[BlackClock "0:01:35"]

1. d4 {[%clk 0:02:55]}  Nf6 {[%clk 0:02:59]} 2. c4 {[%clk 0:02:55]}  e6 {[%clk 0:02:59]} 3. Nf3 {[%clk 0:02:55]}  b6 {[%clk 0:02:57]} 4. Nc3 {[%clk 0:02:53]}  Bb4 {[%clk 0:02:57]} 5. e3 {[%clk 0:02:53]}  Bb7 {[%clk 0:02:56]} 6. Bd3 {[%clk 0:02:53]}  c5 {[%clk 0:02:54]} 7. O-O {[%clk 0:02:53]}  cxd4 {[%clk 0:02:53]} 8. exd4 {[%clk 0:02:53]}  O-O {[%clk 0:02:54]} 9. Bg5 {[%clk 0:02:51]}  h6 {[%clk 0:02:51]} 10. Bh4 {[%clk 0:02:51]}  Be7 {[%clk 0:02:50]} 11. Qe2 {[%clk 0:02:49]}  d5 {[%clk 0:02:49]} 12. Rad1 {[%clk 0:02:48]}  Nc6 {[%clk 0:02:44]} 13. Rfe1 {[%clk 0:02:47]}  Nb4 {[%clk 0:02:40]} 14. Bb1 {[%clk 0:02:35]}  dxc4 {[%clk 0:02:40]} 15. Qxc4 {[%clk 0:02:31]}  Bxf3 {[%clk 0:02:32]} 16. gxf3 {[%clk 0:02:28]}  Rc8 {[%clk 0:02:33]} 17. Qe2 {[%clk 0:02:27]}  Nfd5 {[%clk 0:02:27]} 18. Qe4 {[%clk 0:02:26]}  g6 {[%clk 0:02:23]} 19. Nxd5 {[%clk 0:02:22]}  Nxd5 {[%clk 0:02:18]} 20. Bg3 {[%clk 0:02:19]}  Bf6 {[%clk 0:02:15]} 21. a3 {[%clk 0:02:18]}  Bg7 {[%clk 0:02:15]} 22. h4 {[%clk 0:02:12]}  h5 {[%clk 0:02:13]} 23. Ba2 {[%clk 0:02:09]}  Qd7 {[%clk 0:02:07]} 24. Qd3 {[%clk 0:02:09]}  Rfd8 {[%clk 0:02:06]} 25. Rc1 {[%clk 0:02:08]}  Ne7 {[%clk 0:02:01]} 26. Rxc8 {[%clk 0:02:02]}  Rxc8 {[%clk 0:02:02]} 27. Rd1 {[%clk 0:02:03]}  Rd8 {[%clk 0:01:59]} 28. Kg2 {[%clk 0:01:32]}  Qxd4 {[%clk 0:01:55]} 29. Qxd4 {[%clk 0:01:29]}  Rxd4 {[%clk 0:01:55]} 30. Rc1 {[%clk 0:01:26]}  Rd7 {[%clk 0:01:43]} 31. Rc2 {[%clk 0:01:26]}  Nf5 {[%clk 0:01:43]} 32. Bb3 {[%clk 0:01:26]}  Bf6 {[%clk 0:01:39]} 33. Ba4 {[%clk 0:01:24]}  Rd4 {[%clk 0:01:36]} 34. Rc8+ {[%clk 0:01:21]}  Kg7 {[%clk 0:01:35]} 35. Bc2 {[%clk 0:01:20]}  Nxh4+ {[%clk 0:01:33]} 36. Bxh4 {[%clk 0:01:20]}  Bxh4 {[%clk 0:01:33]} 37. Rc7 {[%clk 0:01:19]}  Rd2 {[%clk 0:01:33]} 38. Bb3 {[%clk 0:01:19]}  Kf6 {[%clk 0:01:33]} 39. Rxa7 {[%clk 0:01:17]}  Rxf2+ {[%clk 0:01:32]} 40. Kh3 {[%clk 0:01:17]}  Rxf3+ {[%clk 0:01:32]} 41. Kxh4 {[%clk 0:01:17]}  Rxb3 {[%clk 0:01:31]} 42. Ra4 {[%clk 0:01:17]}  g5+ {[%clk 0:01:29]} 43. Kxh5 {[%clk 0:01:16]}  Rh3+ {[%clk 0:01:30]} 44. Kg4 {[%clk 0:01:15]}  Rh4+ {[%clk 0:01:31]} 45. Kg3 {[%clk 0:01:16]}  Rxa4 {[%clk 0:01:32]} 46. Kf3 {[%clk 0:01:17]}  Rf4+ {[%clk 0:01:31]} 47. Ke3 {[%clk 0:01:17]}  Kf5 {[%clk 0:01:32]} 48. Ke2 {[%clk 0:01:17]}  g4 {[%clk 0:01:33]} 49. Ke3 {[%clk 0:01:18]}  g3 {[%clk 0:01:34]} 50. Kd3 {[%clk 0:01:19]}  g2 {[%clk 0:01:35]} 51. Ke2 {[%clk 0:01:20]}  g1=Q {[%clk 0:01:35]} 0-1


[Site "https://www.chess.com"]

[Event "Titled Tuesday Blitz March 08 Early 2022"]
[White "Baches Garcia, Guillermo"]
[Black "Sanchez, Robert"]
[WhiteFideId "2209764"]
[BlackFideId "2034360"]
[WhiteElo "2415"]
[BlackElo "2265"]
[Result "0-1"]
[Round "07"]
[TimeControl "180+1"]
[Date "2022.03.09"]
[WhiteClock "0:00:08"]
[BlackClock "0:00:08"]

1. e4 {[%clk 0:03:00]}  e6 {[%clk 0:02:58]} 2. Nf3 {[%clk 0:03:01]}  c5 {[%clk 0:02:57]} 3. c4 {[%clk 0:03:00]}  Nc6 {[%clk 0:02:53]} 4. Nc3 {[%clk 0:03:00]}  Nf6 {[%clk 0:02:47]} 5. d4 {[%clk 0:03:00]}  cxd4 {[%clk 0:02:46]} 6. Nxd4 {[%clk 0:03:01]}  a6 {[%clk 0:02:46]} 7. Nxc6 {[%clk 0:02:57]}  bxc6 {[%clk 0:02:46]} 8. e5 {[%clk 0:02:54]}  Ng8 {[%clk 0:02:43]} 9. Bd3 {[%clk 0:02:44]}  d5 {[%clk 0:02:33]} 10. exd6 {[%clk 0:02:34]}  Bxd6 {[%clk 0:02:33]} 11. O-O {[%clk 0:02:23]}  Nf6 {[%clk 0:02:31]} 12. Bg5 {[%clk 0:02:14]}  h6 {[%clk 0:02:11]} 13. Bh4 {[%clk 0:01:52]}  g5 {[%clk 0:01:48]} 14. Bg3 {[%clk 0:01:51]}  Bxg3 {[%clk 0:01:37]} 15. hxg3 {[%clk 0:01:47]}  h5 {[%clk 0:01:31]} 16. Ne4 {[%clk 0:01:41]}  Nxe4 {[%clk 0:01:16]} 17. Bxe4 {[%clk 0:01:42]}  Bd7 {[%clk 0:01:16]} 18. Qd4 {[%clk 0:01:31]}  Rg8 {[%clk 0:01:08]} 19. Rad1 {[%clk 0:01:18]}  Qc7 {[%clk 0:01:08]} 20. Qf6 {[%clk 0:01:12]}  h4 {[%clk 0:01:05]} 21. g4 {[%clk 0:01:01]}  Qf4 {[%clk 0:00:58]} 22. Qd4 {[%clk 0:00:46]}  Qc7 {[%clk 0:00:44]} 23. Rd3 {[%clk 0:00:36]}  O-O-O {[%clk 0:00:44]} 24. Rfd1 {[%clk 0:00:33]}  f5 {[%clk 0:00:44]} 25. Bf3 {[%clk 0:00:31]}  e5 {[%clk 0:00:43]} 26. Qc5 {[%clk 0:00:18]}  e4 {[%clk 0:00:43]} 27. Ra3 {[%clk 0:00:17]}  exf3 {[%clk 0:00:40]} 28. Rxa6 {[%clk 0:00:17]}  Kb8 {[%clk 0:00:14]} 29. Rb6+ {[%clk 0:00:17]}  Kc8 {[%clk 0:00:13]} 30. Ra6 {[%clk 0:00:17]}  Kb8 {[%clk 0:00:13]} 31. Qb4+ {[%clk 0:00:16]}  Qb7 {[%clk 0:00:11]} 32. Rb6 {[%clk 0:00:16]}  Bc8 {[%clk 0:00:12]} 33. Rxb7+ {[%clk 0:00:16]}  Bxb7 {[%clk 0:00:11]} 34. Rxd8+ {[%clk 0:00:16]}  Rxd8 {[%clk 0:00:12]} 35. gxf3 {[%clk 0:00:16]}  fxg4 {[%clk 0:00:12]} 36. fxg4 {[%clk 0:00:16]}  Rd1+ {[%clk 0:00:10]} 37. Kh2 {[%clk 0:00:13]}  c5 {[%clk 0:00:09]} 38. Qb6 {[%clk 0:00:08]}  Rh1# {[%clk 0:00:08]} 0-1


[Site "https://www.chess.com"]